[Event "Titled Tuesday Blitz March 29 Early 2022"]
[White "Aditya Mittal"]
[Black "Nozdrachev, Leonid"]
[WhiteFideId "35042025"]
[BlackFideId "24113433"]
[WhiteElo "2685"]
[BlackElo "2542"]
[Result "1/2-1/2"]
[Round "07"]
[TimeControl "180+1"]
[Date "2022.03.30"]
[WhiteClock "0:00:05"]
[BlackClock "0:00:04"]

1. d4 {[%clk 0:03:00]}  d6 {[%clk 0:02:56]} 2. c4 {[%clk 0:03:01]}  e5 {[%clk 0:02:55]} 3. d5 {[%clk 0:03:01]}  f5 {[%clk 0:02:55]} 4. e4 {[%clk 0:02:57]}  fxe4 {[%clk 0:02:53]} 5. Nc3 {[%clk 0:02:58]}  Nf6 {[%clk 0:02:53]} 6. Nge2 {[%clk 0:02:58]}  Bg4 {[%clk 0:02:52]} 7. Qb3 {[%clk 0:02:49]}  Na6 {[%clk 0:02:52]} 8. Ng3 {[%clk 0:02:40]}  Nc5 {[%clk 0:02:50]} 9. Qc2 {[%clk 0:02:40]}  Be7 {[%clk 0:02:44]} 10. h3 {[%clk 0:02:39]}  Bh5 {[%clk 0:02:35]} 11. Nxh5 {[%clk 0:02:33]}  Nxh5 {[%clk 0:02:36]} 12. b4 {[%clk 0:02:34]}  Nd3+ {[%clk 0:02:35]} 13. Bxd3 {[%clk 0:02:33]}  exd3 {[%clk 0:02:35]} 14. Qxd3 {[%clk 0:02:34]}  O-O {[%clk 0:02:36]} 15. O-O {[%clk 0:02:29]}  Bg5 {[%clk 0:02:35]} 16. Ne4 {[%clk 0:02:12]}  Bxc1 {[%clk 0:02:33]} 17. Rfxc1 {[%clk 0:02:07]}  Nf4 {[%clk 0:02:32]} 18. Qe3 {[%clk 0:02:06]}  Qe8 {[%clk 0:02:24]} 19. Kh2 {[%clk 0:02:01]}  Qh5 {[%clk 0:02:15]} 20. c5 {[%clk 0:02:01]}  Nxd5 {[%clk 0:02:11]} 21. Qb3 {[%clk 0:02:00]}  Qf7 {[%clk 0:02:06]} 22. cxd6 {[%clk 0:01:47]}  cxd6 {[%clk 0:02:07]} 23. Nxd6 {[%clk 0:01:16]}  Qe6 {[%clk 0:02:06]} 24. Rd1 {[%clk 0:01:12]}  Qxd6 {[%clk 0:02:00]} 25. Rxd5 {[%clk 0:01:12]}  Qe6 {[%clk 0:02:01]} 26. Re1 {[%clk 0:01:05]}  Kh8 {[%clk 0:01:50]} 27. f3 {[%clk 0:00:45]}  Qf6 {[%clk 0:01:30]} 28. Rdxe5 {[%clk 0:00:40]}  h6 {[%clk 0:01:24]} 29. R1e4 {[%clk 0:00:38]}  Rad8 {[%clk 0:01:21]} 30. Qe6 {[%clk 0:00:37]}  Qxe6 {[%clk 0:01:06]} 31. Rxe6 {[%clk 0:00:38]}  Rd2 {[%clk 0:01:05]} 32. a4 {[%clk 0:00:38]}  Rfd8 {[%clk 0:00:55]} 33. b5 {[%clk 0:00:31]}  R8d4 {[%clk 0:00:51]} 34. Re8+ {[%clk 0:00:24]}  Kh7 {[%clk 0:00:50]} 35. R4e7 {[%clk 0:00:24]}  Rxa4 {[%clk 0:00:42]} 36. Rxb7 {[%clk 0:00:11]}  Raa2 {[%clk 0:00:40]} 37. Kg3 {[%clk 0:00:10]}  Rxg2+ {[%clk 0:00:39]} 38. Kf4 {[%clk 0:00:11]}  Ra4+ {[%clk 0:00:38]} 39. Ke3 {[%clk 0:00:11]}  Rb4 {[%clk 0:00:21]} 40. Re4 {[%clk 0:00:08]}  Rb1 {[%clk 0:00:15]} 41. Ra4 {[%clk 0:00:07]}  Rg5 {[%clk 0:00:13]} 42. Raxa7 {[%clk 0:00:07]}  Rbxb5 {[%clk 0:00:13]} 43. Rd7 {[%clk 0:00:06]}  Rb3+ {[%clk 0:00:11]} 44. Kf4 {[%clk 0:00:04]}  Rg6 {[%clk 0:00:10]} 45. Rf7 {[%clk 0:00:03]}  Rb4+ {[%clk 0:00:09]} 46. Ke3 {[%clk 0:00:03]}  Rh4 {[%clk 0:00:10]} 47. Rf4 {[%clk 0:00:03]}  Re6+ {[%clk 0:00:08]} 48. Re4 {[%clk 0:00:03]}  Rexe4+ {[%clk 0:00:08]} 49. fxe4 {[%clk 0:00:04]}  Rxh3+ {[%clk 0:00:09]} 50. Kf4 {[%clk 0:00:05]}  Kg6 {[%clk 0:00:09]} 51. Ra6+ {[%clk 0:00:05]}  Kf7 {[%clk 0:00:09]} 52. Ra7+ {[%clk 0:00:05]}  Kf6 {[%clk 0:00:09]} 53. e5+ {[%clk 0:00:04]}  Kg6 {[%clk 0:00:09]} 54. Ra6+ {[%clk 0:00:04]}  Kf7 {[%clk 0:00:09]} 55. Ra7+ {[%clk 0:00:04]}  Kf8 {[%clk 0:00:09]} 56. e6 {[%clk 0:00:04]}  Rh1 {[%clk 0:00:08]} 57. Kf5 {[%clk 0:00:04]}  Rf1+ {[%clk 0:00:07]} 58. Kg6 {[%clk 0:00:03]}  Rf6+ {[%clk 0:00:07]} 59. Kh7 {[%clk 0:00:03]}  Rxe6 {[%clk 0:00:07]} 60. Rxg7 {[%clk 0:00:04]}  h5 {[%clk 0:00:04]} 61. Rg5 {[%clk 0:00:04]}  h4 {[%clk 0:00:02]} 62. Rh5 {[%clk 0:00:04]}  Re4 {[%clk 0:00:02]} 63. Kg6 {[%clk 0:00:05]}  Ke7 {[%clk 0:00:02]} 64. Kf5 {[%clk 0:00:05]}  Ra4 {[%clk 0:00:02]} 65. Rh6 {[%clk 0:00:05]}  Kf7 {[%clk 0:00:02]} 66. Kg5 {[%clk 0:00:05]}  Kg7 {[%clk 0:00:01]} 67. Rxh4 {[%clk 0:00:03]}  Ra5+ {[%clk 0:00:01]} 68. Kg4 {[%clk 0:00:03]}  Kg6 {[%clk 0:00:02]} 69. Kh3 {[%clk 0:00:03]}  Ra3+ {[%clk 0:00:02]} 70. Kg2 {[%clk 0:00:04]}  Kg5 {[%clk 0:00:02]} 71. Rd4 {[%clk 0:00:04]}  Kf5 {[%clk 0:00:01]} 72. Kf2 {[%clk 0:00:04]}  Ke5 {[%clk 0:00:02]} 73. Rd2 {[%clk 0:00:05]}  Ra4 {[%clk 0:00:02]} 74. Kf3 {[%clk 0:00:04]}  Rf4+ {[%clk 0:00:03]} 75. Ke3 {[%clk 0:00:05]}  Re4+ {[%clk 0:00:03]} 76. Kf3 {[%clk 0:00:05]}  Rf4+ {[%clk 0:00:04]} 77. Kg3 {[%clk 0:00:06]}  Rd4 {[%clk 0:00:05]} 78. Re2+ {[%clk 0:00:06]}  Kd5 {[%clk 0:00:05]} 79. Rh2 {[%clk 0:00:06]}  Kc4 {[%clk 0:00:05]} 80. Rh5 {[%clk 0:00:06]}  Kc3 {[%clk 0:00:05]} 81. Kf3 {[%clk 0:00:05]}  Rd3+ {[%clk 0:00:05]} 82. Ke2 {[%clk 0:00:06]}  Rd2+ {[%clk 0:00:06]} 83. Ke1 {[%clk 0:00:06]}  Ra2 {[%clk 0:00:06]} 84. Rh3+ {[%clk 0:00:05]}  Kd4 {[%clk 0:00:06]} 85. Kf1 {[%clk 0:00:06]}  Ke4 {[%clk 0:00:06]} 86. Kg1 {[%clk 0:00:06]}  Kf4 {[%clk 0:00:06]} 87. Rb3 {[%clk 0:00:07]}  Rd2 {[%clk 0:00:06]} 88. Rc3 {[%clk 0:00:07]}  Ke4 {[%clk 0:00:06]} 89. Kf1 {[%clk 0:00:07]}  Rd3 {[%clk 0:00:06]} 90. Rc8 {[%clk 0:00:06]}  Rd5 {[%clk 0:00:05]} 91. Ke2 {[%clk 0:00:06]}  Re5 {[%clk 0:00:05]} 92. Rf8 {[%clk 0:00:06]}  Re6 {[%clk 0:00:04]} 93. Kd2 {[%clk 0:00:06]}  Ke5 {[%clk 0:00:04]} 94. Kd3 {[%clk 0:00:06]}  Rd6+ {[%clk 0:00:04]} 95. Kc4 {[%clk 0:00:06]}  Re6 {[%clk 0:00:03]} 96. Kc5 {[%clk 0:00:06]}  Ke4 {[%clk 0:00:04]} 97. Rf1 {[%clk 0:00:06]}  Ke5 {[%clk 0:00:03]} 98. Re1+ {[%clk 0:00:06]}  Kf6 {[%clk 0:00:03]} 99. Rh1 {[%clk 0:00:07]}  Ke5 {[%clk 0:00:03]} 100. Rh4 {[%clk 0:00:06]}  Kf5 {[%clk 0:00:03]} 101. Kd5 {[%clk 0:00:07]}  Rg6 {[%clk 0:00:03]} 102. Rh1 {[%clk 0:00:06]}  Rg5 {[%clk 0:00:04]} 103. Rf1+ {[%clk 0:00:06]}  Kg4+ {[%clk 0:00:04]} 104. Ke4 {[%clk 0:00:06]}  Kh5 {[%clk 0:00:03]} 105. Rf8 {[%clk 0:00:05]}  Kg6 {[%clk 0:00:04]} 106. Kf4 {[%clk 0:00:06]}  Rh5 {[%clk 0:00:03]} 107. Kg4 {[%clk 0:00:05]}  Rd5 {[%clk 0:00:02]} 108. Rg8+ {[%clk 0:00:04]}  Kf7 {[%clk 0:00:03]} 109. Ra8 {[%clk 0:00:05]}  Rd7 {[%clk 0:00:03]} 110. Kf5 {[%clk 0:00:05]}  Rd5+ {[%clk 0:00:03]} 111. Ke4 {[%clk 0:00:04]}  Rb5 {[%clk 0:00:03]} 112. Ra6 {[%clk 0:00:04]}  Ke7 {[%clk 0:00:03]} 113. Rh6 {[%clk 0:00:04]}  Kd7 {[%clk 0:00:04]} 114. Kd4 {[%clk 0:00:05]}  Rg5 {[%clk 0:00:03]} 115. Rh7+ {[%clk 0:00:05]}  Ke6 {[%clk 0:00:04]} 116. Rh8 {[%clk 0:00:05]}  Kf5 {[%clk 0:00:04]} 117. Re8 {[%clk 0:00:05]} 1/2-1/2


[Site "https://www.chess.com"]

[Event "Titled Tuesday Blitz March 29 Early 2022"]
[White "Alinasab, Mobina"]
[Black "Guz, Ari"]
[WhiteFideId "12528897"]
[BlackFideId "2825759"]
[WhiteElo "2052"]
[BlackElo "1913"]
[Result "0-1"]
[Round "07"]
[TimeControl "180+1"]
[Date "2022.03.30"]
[WhiteClock "0:00:01"]
[BlackClock "0:00:27"]

1. e4 {[%clk 0:03:00]}  c5 {[%clk 0:02:57]} 2. Nf3 {[%clk 0:03:00]}  e6 {[%clk 0:02:58]} 3. d4 {[%clk 0:03:01]}  cxd4 {[%clk 0:02:59]} 4. Nxd4 {[%clk 0:03:02]}  a6 {[%clk 0:02:59]} 5. c4 {[%clk 0:03:01]}  Nf6 {[%clk 0:02:59]} 6. Nc3 {[%clk 0:03:02]}  Qc7 {[%clk 0:02:59]} 7. Be2 {[%clk 0:03:01]}  Bb4 {[%clk 0:02:59]} 8. Nc2 {[%clk 0:03:00]}  Be7 {[%clk 0:02:57]} 9. O-O {[%clk 0:03:00]}  O-O {[%clk 0:02:56]} 10. f4 {[%clk 0:02:59]}  d6 {[%clk 0:02:57]} 11. b4 {[%clk 0:02:52]}  b5 {[%clk 0:02:53]} 12. Ne3 {[%clk 0:02:46]}  bxc4 {[%clk 0:02:51]} 13. Qd4 {[%clk 0:02:30]}  Bb7 {[%clk 0:02:43]} 14. a3 {[%clk 0:02:21]}  Nbd7 {[%clk 0:02:25]} 15. Bb2 {[%clk 0:02:13]}  Rac8 {[%clk 0:02:20]} 16. Nxc4 {[%clk 0:01:48]}  Rfd8 {[%clk 0:02:10]} 17. Rac1 {[%clk 0:01:46]}  Qb8 {[%clk 0:02:06]} 18. Ne3 {[%clk 0:01:32]}  Bf8 {[%clk 0:01:52]} 19. Ng4 {[%clk 0:00:57]}  Nxg4 {[%clk 0:01:32]} 20. Bxg4 {[%clk 0:00:58]}  Nf6 {[%clk 0:01:31]} 21. Bf3 {[%clk 0:00:58]}  e5 {[%clk 0:01:31]} 22. Qe3 {[%clk 0:00:54]}  a5 {[%clk 0:01:29]} 23. Nd5 {[%clk 0:00:38]}  Bxd5 {[%clk 0:01:27]} 24. exd5 {[%clk 0:00:38]}  axb4 {[%clk 0:01:26]} 25. axb4 {[%clk 0:00:39]}  Qxb4 {[%clk 0:01:23]} 26. fxe5 {[%clk 0:00:24]}  dxe5 {[%clk 0:01:23]} 27. Bxe5 {[%clk 0:00:14]}  Bc5 {[%clk 0:01:11]} 28. Rxc5 {[%clk 0:00:13]}  Qxc5 {[%clk 0:01:12]} 29. Bd4 {[%clk 0:00:10]}  Qd6 {[%clk 0:01:10]} 30. Qg5 {[%clk 0:00:09]}  Rc4 {[%clk 0:01:07]} 31. Bxf6 {[%clk 0:00:08]}  Qxf6 {[%clk 0:01:06]} 32. Qxf6 {[%clk 0:00:08]}  gxf6 {[%clk 0:01:07]} 33. Rd1 {[%clk 0:00:09]}  Rd6 {[%clk 0:01:03]} 34. Kf2 {[%clk 0:00:09]}  Kf8 {[%clk 0:01:04]} 35. Ke3 {[%clk 0:00:10]}  Ke7 {[%clk 0:01:03]} 36. Rd2 {[%clk 0:00:08]}  f5 {[%clk 0:01:04]} 37. Ra2 {[%clk 0:00:07]}  Kf6 {[%clk 0:01:01]} 38. h3 {[%clk 0:00:07]}  Rc7 {[%clk 0:00:58]} 39. Ra5 {[%clk 0:00:06]}  Re7+ {[%clk 0:00:58]} 40. Kd4 {[%clk 0:00:06]}  Rc7 {[%clk 0:00:55]} 41. Ra8 {[%clk 0:00:06]}  Rb6 {[%clk 0:00:54]} 42. Rh8 {[%clk 0:00:04]}  Rb4+ {[%clk 0:00:51]} 43. Ke3 {[%clk 0:00:04]}  Rc3+ {[%clk 0:00:49]} 44. Kf2 {[%clk 0:00:03]}  Kg7 {[%clk 0:00:44]} 45. Rd8 {[%clk 0:00:03]}  f4 {[%clk 0:00:43]} 46. Kg1 {[%clk 0:00:03]}  Rb1+ {[%clk 0:00:39]} 47. Kh2 {[%clk 0:00:03]}  Rb2 {[%clk 0:00:40]} 48. Kh1 {[%clk 0:00:03]}  Rd3 {[%clk 0:00:36]} 49. d6 {[%clk 0:00:03]}  Rbd2 {[%clk 0:00:36]} 50. d7 {[%clk 0:00:03]}  Rxd7 {[%clk 0:00:36]} 51. Rxd7 {[%clk 0:00:03]}  Rxd7 {[%clk 0:00:37]} 52. Kg1 {[%clk 0:00:03]}  Kf6 {[%clk 0:00:37]} 53. Kf2 {[%clk 0:00:03]}  Ke5 {[%clk 0:00:38]} 54. Bg4 {[%clk 0:00:04]}  f5 {[%clk 0:00:38]} 55. Bf3 {[%clk 0:00:04]}  Kd4 {[%clk 0:00:38]} 56. Ke2 {[%clk 0:00:05]}  Ra7 {[%clk 0:00:38]} 57. Bc6 {[%clk 0:00:02]}  Ra2+ {[%clk 0:00:38]} 58. Kf3 {[%clk 0:00:02]}  Ke5 {[%clk 0:00:38]} 59. Bb7 {[%clk 0:00:02]}  Ra3+ {[%clk 0:00:38]} 60. Kf2 {[%clk 0:00:03]}  Kd4 {[%clk 0:00:38]} 61. Bc8 {[%clk 0:00:02]}  Ra5 {[%clk 0:00:35]} 62. Bd7 {[%clk 0:00:02]}  h5 {[%clk 0:00:34]} 63. Kf3 {[%clk 0:00:02]}  Ke5 {[%clk 0:00:32]} 64. Bc8 {[%clk 0:00:03]}  Rc5 {[%clk 0:00:33]} 65. Bb7 {[%clk 0:00:02]}  Rc3+ {[%clk 0:00:33]} 66. Kf2 {[%clk 0:00:03]}  Kd4 {[%clk 0:00:32]} 67. Ba8 {[%clk 0:00:03]}  h4 {[%clk 0:00:28]} 68. Bf3 {[%clk 0:00:03]}  Rc2+ {[%clk 0:00:27]} 69. Be2 {[%clk 0:00:02]}  Ke4 {[%clk 0:00:28]} 70. Kf1 {[%clk 0:00:02]}  Ke3 {[%clk 0:00:28]} 71. Bd1 {[%clk 0:00:02]}  Rc1 {[%clk 0:00:25]} 72. Ke1 {[%clk 0:00:02]}  Ra1 {[%clk 0:00:26]} 73. g3 {[%clk 0:00:01]}  fxg3 {[%clk 0:00:27]} 0-1


[Site "https://www.chess.com"]

[Event "Titled Tuesday Blitz March 29 Early 2022"]
[White "Avalos Parra, Joao"]
[Black "Srinath, Rao S.V."]
[WhiteFideId "3402541"]
[BlackFideId "5028876"]
[WhiteElo "2173"]
[BlackElo "2181"]
[Result "0-1"]
[Round "07"]
[TimeControl "180+1"]
[Date "2022.03.30"]
[WhiteClock "0:00:06"]
[BlackClock "0:01:08"]

1. d4 {[%clk 0:03:00]}  d5 {[%clk 0:02:57]} 2. c4 {[%clk 0:02:59]}  dxc4 {[%clk 0:02:57]} 3. e3 {[%clk 0:02:58]}  e5 {[%clk 0:02:56]} 4. Bxc4 {[%clk 0:02:58]}  exd4 {[%clk 0:02:54]} 5. exd4 {[%clk 0:02:59]}  Bd6 {[%clk 0:02:54]} 6. Nf3 {[%clk 0:02:59]}  Nf6 {[%clk 0:02:54]} 7. O-O {[%clk 0:02:59]}  O-O {[%clk 0:02:55]} 8. h3 {[%clk 0:03:00]}  h6 {[%clk 0:02:50]} 9. Nc3 {[%clk 0:03:00]}  Nc6 {[%clk 0:02:50]} 10. Re1 {[%clk 0:03:00]}  Bf5 {[%clk 0:02:47]} 11. a3 {[%clk 0:03:00]}  a6 {[%clk 0:02:45]} 12. Be3 {[%clk 0:02:56]}  Qd7 {[%clk 0:02:38]} 13. Bf1 {[%clk 0:02:42]}  Ne7 {[%clk 0:02:35]} 14. Qd2 {[%clk 0:02:41]}  Ned5 {[%clk 0:02:33]} 15. Nxd5 {[%clk 0:02:38]}  Nxd5 {[%clk 0:02:34]} 16. Rac1 {[%clk 0:02:36]}  Rae8 {[%clk 0:02:31]} 17. Bd3 {[%clk 0:01:57]}  Bxh3 {[%clk 0:02:24]} 18. gxh3 {[%clk 0:01:52]}  Qxh3 {[%clk 0:02:25]} 19. Qd1 {[%clk 0:01:53]}  Re6 {[%clk 0:02:14]} 20. Ne5 {[%clk 0:01:33]}  Rxe5 {[%clk 0:01:57]} 21. dxe5 {[%clk 0:01:24]}  Bxe5 {[%clk 0:01:58]} 22. Bh7+ {[%clk 0:00:48]}  Kxh7 {[%clk 0:01:57]} 23. Qxd5 {[%clk 0:00:49]}  Bh2+ {[%clk 0:01:56]} 24. Kh1 {[%clk 0:00:47]}  Bg3+ {[%clk 0:01:46]} 25. Kg1 {[%clk 0:00:46]}  Bh2+ {[%clk 0:01:46]} 26. Kh1 {[%clk 0:00:46]}  Bd6+ {[%clk 0:01:43]} 27. Kg1 {[%clk 0:00:44]}  f5 {[%clk 0:01:42]} 28. Qg2 {[%clk 0:00:42]}  Qh5 {[%clk 0:01:41]} 29. Bc5 {[%clk 0:00:33]}  Rf6 {[%clk 0:01:40]} 30. Bxd6 {[%clk 0:00:32]}  cxd6 {[%clk 0:01:35]} 31. Rc3 {[%clk 0:00:32]}  f4 {[%clk 0:01:34]} 32. Rh3 {[%clk 0:00:23]}  Qc5 {[%clk 0:01:27]} 33. Qe4+ {[%clk 0:00:11]}  Rg6+ {[%clk 0:01:26]} 34. Kf1 {[%clk 0:00:12]}  Qb5+ {[%clk 0:01:26]} 35. Qd3 {[%clk 0:00:10]}  Qg5 {[%clk 0:01:24]} 36. Qf3 {[%clk 0:00:09]}  Qg1+ {[%clk 0:01:20]} 37. Ke2 {[%clk 0:00:09]}  Re6+ {[%clk 0:01:20]} 38. Kd3 {[%clk 0:00:10]}  Qxe1 {[%clk 0:01:18]} 39. Qxf4 {[%clk 0:00:10]}  Qd1+ {[%clk 0:01:13]} 40. Kc3 {[%clk 0:00:10]}  Qe1+ {[%clk 0:01:12]} 41. Kb3 {[%clk 0:00:09]}  Qe5 {[%clk 0:01:12]} 42. Qc4 {[%clk 0:00:06]}  d5 {[%clk 0:01:12]} 43. Qc2+ {[%clk 0:00:06]}  Qe4 {[%clk 0:01:11]} 44. Rd3 {[%clk 0:00:07]}  Rc6 {[%clk 0:01:08]} 45. Qd2 {[%clk 0:00:06]}  Qc4# {[%clk 0:01:08]} 0-1


[Site "https://www.chess.com"]

[Event "Titled Tuesday Blitz March 29 Early 2022"]
[White "Baches Garcia, Guillermo"]
[Black "Mikhailovsky, Vladimir"]
[WhiteFideId "2209764"]
[BlackFideId "34105414"]
[WhiteElo "2494"]
[BlackElo "2371"]
[Result "1-0"]
[Round "07"]
[TimeControl "180+1"]
[Date "2022.03.30"]
[WhiteClock "0:00:09"]
[BlackClock "0:00:41"]

1. e4 {[%clk 0:03:00]}  c6 {[%clk 0:02:58]} 2. d4 {[%clk 0:03:00]}  d5 {[%clk 0:02:59]} 3. exd5 {[%clk 0:03:01]}  cxd5 {[%clk 0:03:00]} 4. Bd3 {[%clk 0:03:02]}  Nc6 {[%clk 0:02:59]} 5. c3 {[%clk 0:03:03]}  Nf6 {[%clk 0:02:59]} 6. Bf4 {[%clk 0:03:03]}  Bg4 {[%clk 0:02:59]} 7. Qb3 {[%clk 0:03:02]}  Qd7 {[%clk 0:02:58]} 8. Nd2 {[%clk 0:03:01]}  e6 {[%clk 0:02:59]} 9. h3 {[%clk 0:02:59]}  Bh5 {[%clk 0:02:58]} 10. Ngf3 {[%clk 0:02:59]}  Bd6 {[%clk 0:02:57]} 11. Bxd6 {[%clk 0:02:53]}  Qxd6 {[%clk 0:02:57]} 12. O-O {[%clk 0:02:49]}  O-O {[%clk 0:02:57]} 13. Rae1 {[%clk 0:02:38]}  Bxf3 {[%clk 0:02:50]} 14. Nxf3 {[%clk 0:02:38]}  Qc7 {[%clk 0:02:51]} 15. Qc2 {[%clk 0:02:21]}  Rab8 {[%clk 0:02:47]} 16. Qe2 {[%clk 0:02:20]}  a6 {[%clk 0:02:41]} 17. Ne5 {[%clk 0:02:15]}  Nxe5 {[%clk 0:02:41]} 18. dxe5 {[%clk 0:02:15]}  Nd7 {[%clk 0:02:42]} 19. Qh5 {[%clk 0:02:05]}  g6 {[%clk 0:02:42]} 20. Qg5 {[%clk 0:02:05]}  b5 {[%clk 0:02:38]} 21. a3 {[%clk 0:02:01]}  a5 {[%clk 0:02:37]} 22. h4 {[%clk 0:01:45]}  b4 {[%clk 0:02:35]} 23. axb4 {[%clk 0:01:40]}  axb4 {[%clk 0:02:35]} 24. h5 {[%clk 0:01:31]}  Nc5 {[%clk 0:02:18]} 25. Re3 {[%clk 0:00:45]}  bxc3 {[%clk 0:02:18]} 26. bxc3 {[%clk 0:00:44]}  Nxd3 {[%clk 0:02:00]} 27. Rxd3 {[%clk 0:00:43]}  Rb3 {[%clk 0:02:00]} 28. Rh3 {[%clk 0:00:18]}  Rxc3 {[%clk 0:01:58]} 29. Rxc3 {[%clk 0:00:18]}  Qxc3 {[%clk 0:01:57]} 30. Qf6 {[%clk 0:00:14]}  Qd2 {[%clk 0:01:11]} 31. f4 {[%clk 0:00:13]}  Qe3+ {[%clk 0:01:11]} 32. Kh1 {[%clk 0:00:10]}  Qe2 {[%clk 0:01:10]} 33. Rf3 {[%clk 0:00:09]}  Rc8 {[%clk 0:00:40]} 34. h6 {[%clk 0:00:09]}  Kf8 {[%clk 0:00:40]} 35. Qh8+ {[%clk 0:00:09]}  Ke7 {[%clk 0:00:40]} 36. Qxc8 {[%clk 0:00:09]}  Qe1+ {[%clk 0:00:41]} 37. Kh2 {[%clk 0:00:09]}  Qh4+ {[%clk 0:00:41]} 38. Kg1 {[%clk 0:00:10]}  Qe1+ {[%clk 0:00:41]} 39. Rf1 {[%clk 0:00:10]}  Qc3 {[%clk 0:00:41]} 40. Qxc3 {[%clk 0:00:09]} 1-0


[Site "https://www.chess.com"]

[Event "Titled Tuesday Blitz March 29 Early 2022"]
[White "Bacrot, Etienne"]
[Black "Majdan, Joanna"]
[WhiteFideId "605506"]
[BlackFideId "1121979"]
[WhiteElo "2673"]
[BlackElo "2234"]
[Result "1-0"]
[Round "07"]
[TimeControl "180+1"]
[Date "2022.03.30"]
[WhiteClock "0:00:31"]
[BlackClock "0:00:13"]

1. e4 {[%clk 0:03:00]}  c5 {[%clk 0:02:59]} 2. Nf3 {[%clk 0:03:00]}  e6 {[%clk 0:02:59]} 3. c3 {[%clk 0:03:00]}  d5 {[%clk 0:02:59]} 4. exd5 {[%clk 0:03:00]}  exd5 {[%clk 0:03:00]} 5. d4 {[%clk 0:03:01]}  Nc6 {[%clk 0:03:00]} 6. Bb5 {[%clk 0:03:01]}  Bd6 {[%clk 0:03:00]} 7. dxc5 {[%clk 0:02:59]}  Bxc5 {[%clk 0:03:01]} 8. O-O {[%clk 0:02:59]}  Ne7 {[%clk 0:03:02]} 9. Re1 {[%clk 0:02:59]}  O-O {[%clk 0:03:00]} 10. Be3 {[%clk 0:02:57]}  Bd6 {[%clk 0:02:59]} 11. Nbd2 {[%clk 0:02:55]}  Bg4 {[%clk 0:02:58]} 12. h3 {[%clk 0:02:55]}  Bh5 {[%clk 0:02:58]} 13. Be2 {[%clk 0:02:47]}  Bc7 {[%clk 0:02:50]} 14. Nd4 {[%clk 0:02:45]}  Bg6 {[%clk 0:02:45]} 15. N2b3 {[%clk 0:02:38]}  a6 {[%clk 0:02:42]} 16. Bf1 {[%clk 0:02:37]}  Ne5 {[%clk 0:02:28]} 17. Bf4 {[%clk 0:02:27]}  Nc4 {[%clk 0:02:15]} 18. Bxc7 {[%clk 0:02:09]}  Qxc7 {[%clk 0:02:16]} 19. Qf3 {[%clk 0:02:08]}  Rad8 {[%clk 0:02:09]} 20. Bxc4 {[%clk 0:02:04]}  dxc4 {[%clk 0:02:08]} 21. Nd2 {[%clk 0:02:04]}  Nc6 {[%clk 0:01:53]} 22. Nxc6 {[%clk 0:01:54]}  Rxd2 {[%clk 0:01:53]} 23. Ne7+ {[%clk 0:01:53]}  Kh8 {[%clk 0:01:53]} 24. Re2 {[%clk 0:01:37]}  Rxe2 {[%clk 0:01:48]} 25. Qxe2 {[%clk 0:01:38]}  Bd3 {[%clk 0:01:48]} 26. Qe3 {[%clk 0:01:38]}  h6 {[%clk 0:01:35]} 27. Re1 {[%clk 0:01:37]}  b5 {[%clk 0:01:30]} 28. Nd5 {[%clk 0:01:28]}  Qd6 {[%clk 0:01:27]} 29. Ne7 {[%clk 0:01:15]}  a5 {[%clk 0:01:20]} 30. a3 {[%clk 0:01:15]}  b4 {[%clk 0:01:17]} 31. axb4 {[%clk 0:01:15]}  axb4 {[%clk 0:01:18]} 32. Qa7 {[%clk 0:01:07]}  bxc3 {[%clk 0:01:17]} 33. bxc3 {[%clk 0:01:07]}  Kh7 {[%clk 0:01:14]} 34. Re3 {[%clk 0:00:59]}  Rd8 {[%clk 0:00:53]} 35. h4 {[%clk 0:00:49]}  Rd7 {[%clk 0:00:50]} 36. Nc8 {[%clk 0:00:45]}  Qc6 {[%clk 0:00:35]} 37. Qb8 {[%clk 0:00:38]}  Rb7 {[%clk 0:00:20]} 38. Ne7 {[%clk 0:00:38]}  Rxb8 {[%clk 0:00:16]} 39. Nxc6 {[%clk 0:00:38]}  Rb1+ {[%clk 0:00:15]} 40. Kh2 {[%clk 0:00:37]}  Rc1 {[%clk 0:00:16]} 41. Ne5 {[%clk 0:00:37]}  Rxc3 {[%clk 0:00:15]} 42. Nxf7 {[%clk 0:00:37]}  Rc2 {[%clk 0:00:15]} 43. Kg3 {[%clk 0:00:37]}  Bg6 {[%clk 0:00:14]} 44. Nd8 {[%clk 0:00:32]}  c3 {[%clk 0:00:14]} 45. Ne6 {[%clk 0:00:33]}  Rc1 {[%clk 0:00:13]} 46. Nf8+ {[%clk 0:00:33]}  Kg8 {[%clk 0:00:12]} 47. Nxg6 {[%clk 0:00:33]}  c2 {[%clk 0:00:13]} 48. Rc3 {[%clk 0:00:33]}  Kf7 {[%clk 0:00:13]} 49. Ne5+ {[%clk 0:00:32]}  Ke6 {[%clk 0:00:13]} 50. Ng4 {[%clk 0:00:32]}  g5 {[%clk 0:00:12]} 51. hxg5 {[%clk 0:00:31]}  hxg5 {[%clk 0:00:13]} 52. Ne3 {[%clk 0:00:31]} 1-0


[Site "https://www.chess.com"]

[Event "Titled Tuesday Blitz March 29 Early 2022"]
[White "Bashirli, Saadat"]
[Black "Krylov, Ivan"]
[WhiteFideId "13429990"]
[BlackFideId "24128066"]
[WhiteElo "1173"]
[BlackElo "2258"]
[Result "1-0"]
[Round "07"]
[TimeControl "180+1"]
[Date "2022.03.30"]
[WhiteClock "0:01:07"]
[BlackClock "0:00:01"]

1. d4 {[%clk 0:03:00]}  d5 {[%clk 0:02:59]} 2. Bg5 {[%clk 0:03:01]}  Nf6 {[%clk 0:02:55]} 3. Nd2 {[%clk 0:02:59]}  e6 {[%clk 0:02:52]} 4. Ngf3 {[%clk 0:02:58]}  Be7 {[%clk 0:02:53]} 5. e3 {[%clk 0:02:57]}  O-O {[%clk 0:02:53]} 6. Bd3 {[%clk 0:02:56]}  b6 {[%clk 0:02:53]} 7. O-O {[%clk 0:02:55]}  Bb7 {[%clk 0:02:54]} 8. Ne5 {[%clk 0:02:54]}  Nbd7 {[%clk 0:02:53]} 9. f4 {[%clk 0:02:52]}  c5 {[%clk 0:02:53]} 10. c3 {[%clk 0:02:52]}  Rc8 {[%clk 0:02:52]} 11. Ndf3 {[%clk 0:02:43]}  Ne4 {[%clk 0:02:45]} 12. Bxe7 {[%clk 0:02:41]}  Qxe7 {[%clk 0:02:46]} 13. Nxd7 {[%clk 0:02:36]}  Qxd7 {[%clk 0:02:45]} 14. Ne5 {[%clk 0:02:33]}  Qe7 {[%clk 0:02:42]} 15. Qg4 {[%clk 0:02:30]}  f5 {[%clk 0:01:42]} 16. Qe2 {[%clk 0:02:25]}  Rf6 {[%clk 0:01:40]} 17. Bxe4 {[%clk 0:02:23]}  dxe4 {[%clk 0:01:35]} 18. Rad1 {[%clk 0:02:20]}  Rh6 {[%clk 0:01:23]} 19. dxc5 {[%clk 0:02:15]}  Qh4 {[%clk 0:00:54]} 20. g3 {[%clk 0:02:11]}  Qf6 {[%clk 0:00:29]} 21. cxb6 {[%clk 0:02:08]}  axb6 {[%clk 0:00:27]} 22. Rd7 {[%clk 0:02:06]}  Bd5 {[%clk 0:00:22]} 23. c4 {[%clk 0:01:50]}  Bc6 {[%clk 0:00:15]} 24. Nxc6 {[%clk 0:01:44]}  Rxc6 {[%clk 0:00:14]} 25. b3 {[%clk 0:01:38]}  Rc8 {[%clk 0:00:12]} 26. Qd2 {[%clk 0:01:37]}  g5 {[%clk 0:00:10]} 27. Rd1 {[%clk 0:01:35]}  gxf4 {[%clk 0:00:07]} 28. exf4 {[%clk 0:01:33]}  Rg6 {[%clk 0:00:01]} 29. Rd8+ {[%clk 0:01:32]}  Rxd8 {[%clk 0:00:02]} 30. Qxd8+ {[%clk 0:01:32]}  Qxd8 {[%clk 0:00:02]} 31. Rxd8+ {[%clk 0:01:31]}  Kg7 {[%clk 0:00:02]} 32. Kf2 {[%clk 0:01:29]}  Rh6 {[%clk 0:00:02]} 33. h4 {[%clk 0:01:24]}  Rg6 {[%clk 0:00:02]} 34. Rd6 {[%clk 0:01:23]}  Kf6 {[%clk 0:00:02]} 35. Rxb6 {[%clk 0:01:23]}  Rg7 {[%clk 0:00:02]} 36. a4 {[%clk 0:01:23]}  Rd7 {[%clk 0:00:03]} 37. a5 {[%clk 0:01:19]}  Ra7 {[%clk 0:00:02]} 38. b4 {[%clk 0:01:19]}  Rd7 {[%clk 0:00:02]} 39. a6 {[%clk 0:01:18]}  Rd2+ {[%clk 0:00:02]} 40. Ke1 {[%clk 0:01:18]}  Ra2 {[%clk 0:00:02]} 41. b5 {[%clk 0:01:18]}  Ra1+ {[%clk 0:00:02]} 42. Kd2 {[%clk 0:01:17]}  Ra2+ {[%clk 0:00:03]} 43. Kc3 {[%clk 0:01:18]}  e3 {[%clk 0:00:03]} 44. Rd6 {[%clk 0:01:08]}  e2 {[%clk 0:00:02]} 45. Rd2 {[%clk 0:01:08]}  e1=Q {[%clk 0:00:01]} 46. a7 {[%clk 0:01:07]} 1-0


[Site "https://www.chess.com"]